{"text_format":"3","workbook":"xlsx","n_sheets":4,"sheets":["Kopsavilkums","Aktīvi","Pasīvi","Kategorijas"],"not_rendered":{"defined_names":10},"read":"whole","date_system":"1900"}

{"sheet":"Kopsavilkums","index":0,"n_rows":12,"n_cols":4,"rows_kept":12}
[null,"Bilances lapa"]
[null,null,{"$f":"\"FG-\"&YEAR(TODAY())-1","v":"FG-2016"},{"$f":"\"FG-\"&YEAR(TODAY())","v":"FG-2017"}]
[null,"Aktīvu tips","Iepriekšējais gads","Pašreizējais gads"]
[null,"Pašreizējie aktīvi",{"$f":"SUMIFS(Aktīvi[Iepriekšējais gads],Aktīvi[Aktīvu tips],Informācijas_panelis[[#This Row],[Aktīvu tips]])+SUMIFS(Pasīvi[Iepriekšējais gads],Pasīvi[Pasīvu tips],Informācijas_panelis[[#This Row],[Aktīvu tips]])","v":600},{"$f":"SUMIFS(Aktīvi[Pašreizējais gads],Aktīvi[Aktīvu tips],Informācijas_panelis[[#This Row],[Aktīvu tips]])+SUMIFS(Pasīvi[Pašreizējais gads],Pasīvi[Pasīvu tips],Informācijas_panelis[[#This Row],[Aktīvu tips]])","v":600}]
[null,"Pamatlīdzekļi",{"$f":"SUMIFS(Aktīvi[Iepriekšējais gads],Aktīvi[Aktīvu tips],Informācijas_panelis[[#This Row],[Aktīvu tips]])+SUMIFS(Pasīvi[Iepriekšējais gads],Pasīvi[Pasīvu tips],Informācijas_panelis[[#This Row],[Aktīvu tips]])","v":{"v":-100,"d":"-100 "}},{"$f":"SUMIFS(Aktīvi[Pašreizējais gads],Aktīvi[Aktīvu tips],Informācijas_panelis[[#This Row],[Aktīvu tips]])+SUMIFS(Pasīvi[Pašreizējais gads],Pasīvi[Pasīvu tips],Informācijas_panelis[[#This Row],[Aktīvu tips]])","v":{"v":-85,"d":"-85 "}}]
[null,"Citi aktīvi",{"$f":"SUMIFS(Aktīvi[Iepriekšējais gads],Aktīvi[Aktīvu tips],Informācijas_panelis[[#This Row],[Aktīvu tips]])+SUMIFS(Pasīvi[Iepriekšējais gads],Pasīvi[Pasīvu tips],Informācijas_panelis[[#This Row],[Aktīvu tips]])","v":0},{"$f":"SUMIFS(Aktīvi[Pašreizējais gads],Aktīvi[Aktīvu tips],Informācijas_panelis[[#This Row],[Aktīvu tips]])+SUMIFS(Pasīvi[Pašreizējais gads],Pasīvi[Pasīvu tips],Informācijas_panelis[[#This Row],[Aktīvu tips]])","v":0}]
[null,"Īstermiņa saistības",{"$f":"SUMIFS(Aktīvi[Iepriekšējais gads],Aktīvi[Aktīvu tips],Informācijas_panelis[[#This Row],[Aktīvu tips]])+SUMIFS(Pasīvi[Iepriekšējais gads],Pasīvi[Pasīvu tips],Informācijas_panelis[[#This Row],[Aktīvu tips]])","v":500},{"$f":"SUMIFS(Aktīvi[Pašreizējais gads],Aktīvi[Aktīvu tips],Informācijas_panelis[[#This Row],[Aktīvu tips]])+SUMIFS(Pasīvi[Pašreizējais gads],Pasīvi[Pasīvu tips],Informācijas_panelis[[#This Row],[Aktīvu tips]])","v":350}]
[null,"Ilgtermiņa saistības",{"$f":"SUMIFS(Aktīvi[Iepriekšējais gads],Aktīvi[Aktīvu tips],Informācijas_panelis[[#This Row],[Aktīvu tips]])+SUMIFS(Pasīvi[Iepriekšējais gads],Pasīvi[Pasīvu tips],Informācijas_panelis[[#This Row],[Aktīvu tips]])","v":0},{"$f":"SUMIFS(Aktīvi[Pašreizējais gads],Aktīvi[Aktīvu tips],Informācijas_panelis[[#This Row],[Aktīvu tips]])+SUMIFS(Pasīvi[Pašreizējais gads],Pasīvi[Pasīvu tips],Informācijas_panelis[[#This Row],[Aktīvu tips]])","v":0}]
[null,"Īpašnieka kapitāls",{"$f":"SUMIFS(Aktīvi[Iepriekšējais gads],Aktīvi[Aktīvu tips],Informācijas_panelis[[#This Row],[Aktīvu tips]])+SUMIFS(Pasīvi[Iepriekšējais gads],Pasīvi[Pasīvu tips],Informācijas_panelis[[#This Row],[Aktīvu tips]])","v":0},{"$f":"SUMIFS(Aktīvi[Pašreizējais gads],Aktīvi[Aktīvu tips],Informācijas_panelis[[#This Row],[Aktīvu tips]])+SUMIFS(Pasīvi[Pašreizējais gads],Pasīvi[Pasīvu tips],Informācijas_panelis[[#This Row],[Aktīvu tips]])","v":350}]
[null,"Kopējie aktīvi",{"$f":"Aktīvi[[#Totals],[Iepriekšējais gads]]","v":500},{"$f":"Aktīvi[[#Totals],[Pašreizējais gads]]","v":515}]
[null,"Kopējie pasīvi un akcionāru kapitāls",{"$f":"Pasīvi[[#Totals],[Iepriekšējais gads]]","v":500},{"$f":"Pasīvi[[#Totals],[Pašreizējais gads]]","v":700}]
[null,"Bilance",{"$f":"C10-C11","v":0},{"$f":"D10-D11","v":{"v":-185,"d":"-185 "}}]

{"sheet":"Aktīvi","index":1,"n_rows":14,"n_cols":5,"rows_kept":14}
[null,"Aktīvi"]
[{"$nulls":3},{"$f":"FISK_GADS","v":"FG-2016"},{"$f":"FISK_GADS_2","v":"FG-2017"}]
[null,"Aktīvu tips","Apraksts","Iepriekšējais gads","Pašreizējais gads"]
[null,"Pašreizējie aktīvi","Skaidra nauda",600,600]
[null,"Pašreizējie aktīvi","Investīcijas"]
[null,"Pašreizējie aktīvi","Krājumi"]
[null,"Pašreizējie aktīvi","Debitoru parādi"]
[null,"Pašreizējie aktīvi","Priekšapmaksas izdevumi"]
[null,"Pamatlīdzekļi","Īpašumi un aprīkojums"]
[null,"Pamatlīdzekļi","Uzlabojumi nomniekam"]
[null,"Pamatlīdzekļi","Kapitāls un citas investīcijas"]
[null,"Pamatlīdzekļi","Mazāks uzkrātais nolietojums (negatīva vērtība)",{"v":-100,"d":"-100 "},{"v":-85,"d":"-85 "}]
[null,"Citi aktīvi","Labdarība"]
[null,"Kopējie aktīvi",null,{"$f":"SUBTOTAL(109,Aktīvi[Iepriekšējais gads])","v":500},{"$f":"SUBTOTAL(109,Aktīvi[Pašreizējais gads])","v":515}]

{"sheet":"Pasīvi","index":2,"n_rows":12,"n_cols":5,"rows_kept":12}
[null,"Pasīvi"]
[{"$nulls":3},{"$f":"FISK_GADS","v":"FG-2016"},{"$f":"FISK_GADS_2","v":"FG-2017"}]
[null,"Pasīvu tips","Apraksts","Iepriekšējais gads","Pašreizējais gads"]
[null,"Īstermiņa saistības","Kreditoru parādi",null,350]
[null,"Īstermiņa saistības","Uzkrātās algas"]
[null,"Īstermiņa saistības","Uzkrātās prēmijas",500]
[null,"Īstermiņa saistības","Maksājamais ienākuma nodoklis"]
[null,"Īstermiņa saistības","Nenopelnītie ieņēmumi"]
[null,"Ilgtermiņa saistības","Hipotekārā kredīta maksājums"]
[null,"Īpašnieka kapitāls","Investīciju kapitāls",null,350]
[null,"Īpašnieka kapitāls","Uzkrātie ienākumi"]
[null,"Kopējie pasīvi un akcionāru kapitāls",null,{"$f":"SUBTOTAL(109,Pasīvi[Iepriekšējais gads])","v":500},{"$f":"SUBTOTAL(109,Pasīvi[Pašreizējais gads])","v":700}]

{"sheet":"Kategorijas","index":3,"n_rows":9,"n_cols":2,"rows_kept":9}
[null,"Kategorijas"]
[]
[null,"Kategorijas"]
[null,"Pašreizējie aktīvi"]
[null,"Pamatlīdzekļi"]
[null,"Citi aktīvi"]
[null,"Īstermiņa saistības"]
[null,"Ilgtermiņa saistības"]
[null,"Īpašnieka kapitāls"]